bitfinex/quotes_BTCUSD_20230901
["timestamp","ask_amount","ask_price","bid_price","bid_amount"]
[1693574747644,1.10664947,26050.0,26048.0,0.04477783]
[1693574747908,1.10664947,26050.0,26049.0,1.957848]
[1693574748035,1.10664947,26050.0,26049.0,2.076048]
[1693574748250,1.10664947,26050.0,26049.0,2.46313478]
[1693574748476,1.22950611,26054.0,26049.0,2.46313478]
[1693574748477,1.22948511,26054.0,26049.0,2.46313478]
[1693574748668,1.10657155,26053.0,26050.0,0.25127972]
[1693574748867,1.10657155,26053.0,26051.0,1.95768]
[1693574749680,1.10657155,26053.0,26051.0,2.111282]
[1693574750798,1.10657155,26052.0,26051.0,2.111282]
[1693574750955,0.001,26053.0,26051.0,2.111282]
[1693574751131,1.10657155,26052.0,26051.0,2.111282]
[1693574751756,0.001,26053.0,26051.0,2.111282]
[1693574751962,0.001,26053.0,26051.0,2.115282]
[1693574752354,0.20999373,26055.0,26051.0,2.115282]
[1693574752555,1.10656101,26054.0,26051.0,2.111282]
[1693574754828,1.10756101,26054.0,26051.0,2.113282]
[1693574755033,1.10656101,26053.0,26051.0,2.113282]
[1693574755241,0.001,26054.0,26051.0,2.50036878]
[1693574755378,0.001,26054.0,26052.0,0.1182]
[1693574755595,0.001,26054.0,26053.0,1.957548]
[1693574756029,1.10655089,26054.0,26053.0,1.957548]
[1693574756228,1.10655089,26056.0,26053.0,2.34463478]
[1693574756443,1.10655089,26055.0,26053.0,2.34463478]
[1693574756635,0.09179373,26058.0,26053.0,2.46283478]
[1693574756841,1.10648332,26057.0,26053.0,2.61766949]
[1693574757037,1.10648332,26056.0,26053.0,2.46283478]
[1693574757400,1.10648332,26055.0,26053.0,2.46283478]
[1693574757606,0.09179373,26059.0,26053.0,2.46283478]
[1693574757866,1.10648201,26058.0,26055.0,1.468035]
[1693574758882,1.10648201,26057.0,26055.0,1.468035]
[1693574759094,1.10648201,26056.0,26055.0,1.470035]
[1693574759298,1.10648201,26056.0,26055.0,1.472035]
[1693574759501,1.10648201,26057.0,26055.0,1.472035]
[1693574759706,1.10648201,26057.0,26055.0,0.98069]
[1693574760134,0.1182,26056.0,26055.0,0.489345]
[1693574760313,1.22468201,26056.0,26055.0,0.489345]
[1693574760634,1.22468201,26056.0,26054.0,1.206609]
[1693574760842,1.10648201,26055.0,26054.0,1.206609]
[1693574761059,1.10648201,26055.0,26054.0,0.717253]
[1693574761238,1.50342683,26055.0,26053.0,0.978752]
[1693574761465,0.39694482,26055.0,26053.0,0.978752]
[1693574762364,0.39694482,26055.0,26054.0,0.016]
[1693574762539,0.39694482,26055.0,26054.0,0.505368]
[1693574762743,1.50344584,26055.0,26054.0,0.489368]
[1693574763341,1.50026584,26055.0,26054.0,0.489368]
[1693574763942,1.50026584,26055.0,26054.0,0.501368]
[1693574764326,1.22470102,26055.0,26054.0,0.501368]
[1693574765045,1.22470102,26055.0,26054.0,0.517368]
[1693574767077,1.22470119,26055.0,26054.0,0.517368]
[1693574768978,1.22470119,26055.0,26054.0,0.501368]
[1693574769324,1.22470119,26055.0,26054.0,0.505368]
[1693574769540,1.22470119,26055.0,26054.0,0.530368]
[1693574769758,1.22470119,26055.0,26054.0,0.489368]
[1693574769966,1.22470119,26055.0,26053.0,0.978751]
[1693574770166,0.1182,26055.0,26054.0,0.012]
[1693574770357,1.22470909,26055.0,26054.0,0.012]
[1693574772008,1.22470909,26055.0,26054.0,0.016]
[1693574772634,1.22470909,26055.0,26054.0,0.028]
[1693574777003,2.95182409,26055.0,26054.0,0.028]
[1693574777235,3.57905561,26055.0,26054.0,0.028]
[1693574778430,3.57905561,26055.0,26054.0,0.016]
[1693574778633,3.57905561,26055.0,26048.0,1.1927591]
[1693574778867,0.1182,26050.0,26048.0,1.1927591]
[1693574779208,1.10650909,26049.0,26048.0,1.1927591]
[1693574779392,1.10650909,26049.0,26048.0,1.143171]
[1693574780318,0.1182,26050.0,26048.0,1.143171]
[1693574780469,1.1066383,26049.0,26048.0,1.143171]
[1693574780674,1.1066383,26049.0,26048.0,1.180171]
[1693574780884,0.1182,26050.0,26048.0,1.180171]
[1693574781514,0.1182,26050.0,26048.0,1.669651]
[1693574781724,0.1182,26050.0,26048.0,1.706651]
[1693574781924,0.1182,26050.0,26048.0,1.669651]
[1693574782145,0.1182,26050.0,26048.0,1.632651]
[1693574782354,0.1182,26050.0,26048.0,1.706651]
[1693574786532,0.1182,26053.0,26048.0,1.706651]
[1693574786743,1.10663262,26052.0,26049.0,0.15483471]
[1693574786944,1.10663262,26052.0,26050.0,1.468329]
[1693574788665,1.10659207,26051.0,26050.0,1.468329]
[1693574788857,1.10659207,26052.0,26050.0,1.468329]
[1693574789063,1.10659207,26051.0,26050.0,1.493329]
[1693574789228,1.10659207,26053.0,26050.0,1.493329]
[1693574789437,1.10659207,26052.0,26050.0,1.523329]
[1693574789649,1.10659207,26051.0,26050.0,1.523329]
[1693574789823,1.10659207,26053.0,26050.0,1.523329]
[1693574790044,1.10659207,26053.0,26050.0,1.493329]
[1693574790439,1.10659207,26053.0,26050.0,1.531329]
[1693574790865,1.10659207,26053.0,26050.0,1.493329]
[1693574791241,1.10659207,26053.0,26050.0,1.509329]
[1693574791567,1.10659207,26053.0,26050.0,1.484329]
[1693574791908,1.10659207,26053.0,26050.0,1.496329]
[1693574792121,1.10659207,26053.0,26050.0,1.88341578]
[1693574795198,1.31756497,26053.0,26050.0,1.88341578]
[1693574795401,1.31165175,26052.0,26050.0,1.496329]
[1693574795600,1.10659207,26051.0,26050.0,1.496329]
[1693574796301,1.10659207,26051.0,26050.0,1.480329]
[1693574796626,1.10659207,26051.0,26050.0,1.498329]
[1693574796801,1.10659207,26051.0,26050.0,1.523329]
[1693574797164,1.10659207,26051.0,26050.0,1.493329]
[1693574797368,1.10659207,26051.0,26050.0,1.531329]
[1693574797977,1.10659207,26051.0,26050.0,1.506329]
[1693574798491,1.10659207,26052.0,26050.0,1.506329]
[1693574798861,1.10659207,26052.0,26050.0,1.544329]
[1693574799367,1.10659207,26052.0,26050.0,1.506329]
[1693574799778,1.10659207,26052.0,26050.0,1.498329]
[1693574800016,1.10659207,26052.0,26050.0,1.033886]
[1693574800391,1.38401159,26052.0,26050.0,1.033886]
[1693574800618,1.10659207,26051.0,26050.0,1.033886]
[1693574800836,1.32651641,26051.0,26050.0,0.055]
[1693574802057,1.32651641,26051.0,26049.0,0.97891]
[1693574802281,0.21992434,26051.0,26050.0,0.038]
[1693574802458,0.21992434,26051.0,26050.0,0.076]
[1693574802666,1.32652091,26051.0,26050.0,0.076]
[1693574802862,1.32652091,26051.0,26050.0,0.038]
[1693574804109,1.32652091,26051.0,26050.0,0.076]
[1693574810085,1.44472091,26051.0,26050.0,0.076]
[1693574820023,1.22479657,26051.0,26050.0,0.076]
[1693574825727,1.43303013,26051.0,26050.0,0.076]
[1693574826018,1.43303013,26051.0,26050.0,0.1710889]
[1693574826974,1.31483013,26051.0,26050.0,0.1710889]
[1693574828228,1.31483013,26051.0,26050.0,0.076]
[1693574831436,1.43303013,26051.0,26050.0,0.076]
[1693574833730,2.58461613,26051.0,26050.0,0.076]
[1693574833918,2.67640986,26051.0,26050.0,0.076]
[1693574834096,3.0439693,26051.0,26050.0,0.076]
[1693574834310,3.68235867,26051.0,26050.0,0.076]
[1693574834535,3.67121986,26051.0,26050.0,0.076]
[1693574834737,3.90475476,26051.0,26050.0,0.076]
[1693574834956,3.43105608,26051.0,26050.0,0.076]
[1693574835633,3.76311658,26051.0,26050.0,0.076]
[1693574837935,3.90122107,26051.0,26050.0,0.076]
[1693574838896,3.76311658,26051.0,26050.0,0.076]
[1693574839099,3.90122352,26051.0,26050.0,0.076]
[1693574840040,2.79462695,26051.0,26050.0,0.076]
[1693574840237,3.90137159,26051.0,26050.0,0.076]
[1693574842024,3.71769403,26051.0,26050.0,0.076]
[1693574842618,3.90137159,26051.0,26050.0,0.076]
[1693574843124,3.71769403,26051.0,26050.0,0.076]
[1693574843335,3.71769694,26051.0,26050.0,0.076]
[1693574845705,3.93571728,26051.0,26050.0,0.076]
[1693574846380,3.71769694,26051.0,26050.0,0.076]
[1693574847152,3.94120498,26051.0,26050.0,0.076]
[1693574848052,3.94120498,26051.0,26050.0,0.038]
[1693574848343,3.94120498,26051.0,26050.0,0.055]
[1693574848830,3.94120498,26051.0,26048.0,0.0106]
[1693574849054,2.08899398,26051.0,26050.0,0.013]
[1693574849272,3.70802111,26051.0,26050.0,0.013]
[1693574849521,3.48451307,26051.0,26050.0,0.013]
[1693574849763,3.48451307,26051.0,26048.0,0.0106]
[1693574850017,0.1182,26049.0,26048.0,0.0106]
[1693574850274,1.80078456,26049.0,26048.0,0.0236]
[1693574850485,1.80078456,26049.0,26048.0,0.0106]
[1693574850772,2.37662156,26049.0,26048.0,0.0106]
[1693574851226,2.37662156,26049.0,26048.0,0.0276]
[1693574851693,2.37662156,26049.0,26048.0,0.0106]
[1693574851899,2.37662156,26049.0,26048.0,0.0486]
[1693574852371,2.37662156,26049.0,26048.0,0.0866]
[1693574852749,2.61949432,26049.0,26048.0,0.0866]
[1693574853340,2.95245856,26049.0,26048.0,0.0866]
[1693574853746,3.19093189,26049.0,26048.0,0.0866]
[1693574854398,3.19093189,26049.0,26048.0,0.0486]
[1693574854768,3.19093189,26049.0,26048.0,0.0656]
[1693574855219,3.19093189,26049.0,26048.0,0.0276]
[1693574855397,3.19093189,26049.0,26048.0,0.0406]
[1693574856815,3.19093189,26049.0,26048.0,0.0236]
[1693574857050,3.19093189,26049.0,26048.0,0.0406]
[1693574857240,3.57801867,26049.0,26048.0,0.0406]
[1693574860720,3.33954534,26049.0,26048.0,0.0406]
[1693574867886,3.57973293,26049.0,26048.0,0.0406]
[1693574869344,3.19264615,26049.0,26048.0,0.0406]
[1693574869785,2.95245856,26049.0,26048.0,0.0406]
[1693574875755,3.04451193,26049.0,26048.0,0.0406]
[1693574876866,3.28469291,26049.0,26048.0,0.04047069]
[1693574877619,3.2847772,26049.0,26048.0,0.04047069]
[1693574879428,3.42298369,26049.0,26048.0,0.04047069]
[1693574879638,3.04459622,26049.0,26048.0,0.04047069]
[1693574880443,2.46875922,26049.0,26048.0,0.04047069]
[1693574880860,1.31708522,26049.0,26048.0,0.04047069]
[1693574881131,1.19888522,26049.0,26048.0,0.04047069]
[1693574881508,1.19888522,26049.0,26048.0,0.14241896]
[1693574883364,3.04459622,26049.0,26048.0,0.04047069]
[1693574884210,2.46875922,26049.0,26048.0,0.04047069]
[1693574887282,2.60696571,26049.0,26048.0,0.04047069]
[1693574892870,1.19888522,26049.0,26048.0,0.04047069]
[1693574893083,1.10674756,26049.0,26048.0,0.52995069]
[1693574893282,1.10674756,26049.0,26048.0,1.01943069]
[1693574896481,1.10674756,26049.0,26048.0,0.52995069]
[1693574901750,1.10674756,26049.0,26048.0,0.04047069]
[1693574904615,1.10664124,26049.0,26048.0,0.04047069]
[1693574907268,2.37651524,26049.0,26048.0,0.04047069]
[1693574908831,2.95235224,26049.0,26048.0,0.04047069]
[1693574914916,1.22484124,26049.0,26048.0,0.04047069]
[1693574915138,2.95235224,26049.0,26048.0,0.04047069]
[1693574918312,2.4686529,26049.0,26048.0,0.04047069]
[1693574918509,2.37651524,26049.0,26048.0,0.04047069]
[1693574918907,2.4686529,26049.0,26048.0,0.04047069]
[1693574931057,2.60685939,26049.0,26048.0,0.04047069]
[1693574931514,2.4686529,26049.0,26048.0,0.04047069]
[1693574943712,2.60685939,26049.0,26048.0,0.04047069]
[1693574944733,2.4686529,26049.0,26048.0,0.04047069]
[1693574946351,2.60685939,26049.0,26048.0,0.04047069]
[1693574948492,2.51472173,26049.0,26048.0,0.04047069]
[1693574948646,2.60687792,26049.0,26048.0,0.04047069]
[1693574949303,2.51472173,26049.0,26048.0,0.04047069]
[1693574951647,2.69899706,26049.0,26048.0,0.04047069]
[1693574957454,3.27483406,26049.0,26048.0,0.04047069]
[1693574957871,2.69899706,26049.0,26048.0,0.04047069]
[1693574960076,3.27483406,26049.0,26048.0,0.04047069]
[1693574960403,3.52371435,26049.0,26048.0,0.04047069]
[1693574965466,3.75405851,26049.0,26048.0,0.04047069]
[1693574965669,3.56978318,26049.0,26048.0,0.04047069]
[1693574965930,3.56978318,26049.0,26048.0,0.03547069]
[1693574975168,3.63470318,26049.0,26048.0,0.03547069]
[1693574975367,3.65650318,26049.0,26048.0,0.03547069]
[1693574975575,3.58978318,26049.0,26048.0,0.03547069]
[1693574975774,3.35943902,26049.0,26048.0,0.03547069]
[1693574976135,3.98399319,26049.0,26048.0,0.03547069]
[1693574976333,4.67022618,26049.0,26048.0,0.03547069]
[1693574976531,4.39411319,26049.0,26048.0,0.03547069]
[1693574976734,4.00629902,26049.0,26048.0,0.03547069]
[1693574976952,4.00611902,26049.0,26048.0,0.03547069]
[1693574977159,4.00641902,26049.0,26048.0,0.01847069]
[1693574977359,4.00509902,26049.0,26048.0,0.00547069]
[1693574977618,4.00981902,26049.0,26048.0,0.00547069]
[1693574977823,4.00993902,26049.0,26048.0,0.00547069]
[1693574977976,4.00747902,26049.0,26048.0,0.00547069]
[1693574978178,4.00641902,26049.0,26048.0,0.00847069]
[1693574978377,4.00605902,26049.0,26048.0,0.00847069]
[1693574978583,4.00705902,26049.0,26048.0,0.01147069]
[1693574978921,3.99823902,26049.0,26048.0,0.01147069]
[1693574979103,3.99805902,26049.0,26048.0,0.01147069]
[1693574979324,3.99841902,26049.0,26048.0,0.01147069]
[1693574980002,3.99829902,26049.0,26048.0,0.01147069]
[1693574980181,3.99841902,26049.0,26048.0,0.01147069]
[1693574980325,3.99835902,26049.0,26048.0,0.01147069]
[1693574980519,3.99673902,26049.0,26048.0,0.01147069]
[1693574980771,3.99997902,26049.0,26048.0,0.01147069]
[1693574980966,4.22530068,26049.0,26048.0,0.01147069]
[1693574981148,3.99607902,26049.0,26048.0,0.01147069]
[1693574981349,3.99619902,26049.0,26048.0,0.01147069]
[1693574981547,3.99625902,26049.0,26048.0,0.01147069]
[1693574981753,4.00231902,26049.0,26048.0,0.01147069]
[1693574982085,4.00189902,26049.0,26048.0,0.01147069]
[1693574982266,4.00003902,26049.0,26048.0,0.01147069]
[1693574982471,3.99955902,26049.0,26048.0,0.01147069]
[1693574982663,4.22948263,26049.0,26048.0,0.01147069]
[1693574982824,4.22312263,26049.0,26048.0,0.01147069]
[1693574983025,4.22186263,26049.0,26048.0,0.01147069]
[1693574983243,4.15442263,26049.0,26048.0,0.01147069]
[1693574983646,4.154695,26049.0,26048.0,0.01147069]
[1693574983853,3.98975139,26049.0,26048.0,0.01147069]
[1693574984052,3.92441139,26049.0,26048.0,0.01147069]
[1693574984744,3.92441139,26049.0,26048.0,0.15407069]
[1693574986216,4.15467418,26049.0,26048.0,0.15407069]
[1693574986459,3.73097418,26049.0,26048.0,0.15407069]
[1693574988038,3.72997418,26049.0,26048.0,0.14807069]
[1693574988244,2.99413718,26049.0,26048.0,0.14807069]
[1693574988446,2.99413718,26049.0,26048.0,0.15407069]
[1693574988447,1.24606016,26049.0,26048.0,0.15407069]
[1693574988646,1.24606016,26049.0,26048.0,0.15107069]
[1693574989053,1.24606016,26049.0,26048.0,0.15407069]
[1693574989254,1.36426016,26049.0,26048.0,0.15107069]
[1693574989459,1.94009716,26049.0,26048.0,0.15107069]
[1693574989714,1.10791361,26049.0,26048.0,1.13303069]
[1693574989883,1.10791361,26049.0,26048.0,1.13003069]
[1693574990083,1.10791361,26049.0,26048.0,0.64055069]
[1693574990269,1.10691361,26049.0,26048.0,0.63755069]
[1693574990459,1.10791361,26049.0,26048.0,0.64055069]
[1693574990861,1.10791361,26049.0,26048.0,1.13003069]
[1693574991155,1.10691361,26049.0,26048.0,1.12703069]
[1693574991360,1.10791361,26049.0,26048.0,1.13003069]
[1693574991540,1.10791361,26049.0,26048.0,1.12803069]
[1693574992484,1.10791361,26049.0,26048.0,1.12903069]
[1693574999291,1.10791361,26049.0,26048.0,1.61851069]
[1693574999501,1.10791361,26049.0,26048.0,1.73671069]
[1693574999714,0.001,26049.0,26048.0,1.73671069]
[1693575000254,0.09208949,26053.0,26048.0,1.73471069]
[1693575000413,1.10662177,26052.0,26050.0,0.1182]
[1693575000592,0.001,26049.0,26048.0,0.9105854]
[1693575000792,0.001,26049.0,26048.0,1.12703069]
[1693575001128,1.38174472,26053.0,26048.0,1.61651069]
[1693575001326,1.1066422,26052.0,26048.0,1.7733454]
[1693575001500,1.19873169,26052.0,26048.0,1.61851069]
[1693575001699,1.1066422,26051.0,26048.0,1.61851069]
[1693575002477,1.1066422,26051.0,26048.0,1.12903069]
[1693575002659,1.8006432,26051.0,26048.0,1.12903069]
[1693575002814,1.1066422,26050.0,26048.0,1.12703069]
[1693575003212,1.1066422,26050.0,26048.0,1.14503069]
[1693575003412,1.1066422,26050.0,26048.0,1.14403069]
[1693575003669,1.1066422,26050.0,26048.0,1.61651069]
[1693575003817,1.1066422,26050.0,26048.0,1.62051069]
[1693575004561,1.1066422,26050.0,26048.0,1.13103069]
[1693575005163,1.1066422,26050.0,26048.0,0.64155069]
[1693575005373,1.1066422,26050.0,26048.0,0.15207069]
[1693575005374,0.38708678,26049.0,26048.0,0.15207069]
[1693575005577,3.43152947,26049.0,26048.0,0.15207069]
[1693575005797,3.5696637,26049.0,26048.0,0.15207069]
[1693575006040,3.43152947,26049.0,26048.0,0.15207069]
[1693575006243,3.43152947,26049.0,26048.0,0.14807069]
[1693575006827,2.46860569,26049.0,26048.0,0.20683033]
[1693575007185,1.1066422,26049.0,26048.0,1.18579033]
[1693575007408,1.1066422,26049.0,26048.0,1.16879033]
[1693575007598,0.001,26049.0,26048.0,1.65827033]
[1693575007834,1.1076422,26049.0,26048.0,1.65827033]
[1693575008862,1.1076422,26049.0,26048.0,0.67931033]
[1693575009069,1.1076422,26049.0,26048.0,0.18983033]
[1693575010337,1.6834792,26049.0,26048.0,0.18983033]
[1693575011703,2.9533532,26049.0,26048.0,0.14807069]
[1693575013140,1.8016792,26049.0,26048.0,0.14807069]
[1693575013447,1.1076422,26049.0,26048.0,0.14807069]
[1693575014494,1.1076422,26049.0,26048.0,0.63755069]
[1693575014966,1.10774464,26049.0,26048.0,0.63755069]
[1693575015778,1.10774464,26049.0,26048.0,0.14807069]
[1693575016189,1.68358164,26049.0,26048.0,0.14807069]
[1693575017334,1.10774464,26049.0,26048.0,0.14807069]
[1693575022057,1.10774464,26049.0,26048.0,1.12703069]
[1693575024060,1.10774464,26049.0,26048.0,1.13780469]
[1693575025415,1.10774464,26049.0,26048.0,1.62728469]
[1693575026426,1.10674464,26049.0,26048.0,1.62728469]
[1693575026639,1.10674464,26050.0,26048.0,1.63128469]
[1693575026828,1.10674464,26049.0,26048.0,1.74948469]
[1693575027049,0.13813423,26053.0,26048.0,1.74948469]
[1693575027050,1.10674464,26051.0,26048.0,1.74948469]
[1693575027276,1.10674464,26050.0,26048.0,1.74948469]
[1693575027527,1.10674464,26049.0,26048.0,1.74948469]
[1693575027728,1.10674464,26052.0,26048.0,1.74948469]
[1693575027932,1.10674464,26051.0,26048.0,1.74948469]
[1693575028183,1.10674464,26050.0,26048.0,1.74548469]
[1693575028385,1.10674464,26049.0,26048.0,1.74548469]
[1693575028609,1.10674464,26049.0,26048.0,1.74648469]
[1693575028990,1.10674464,26050.0,26048.0,1.74648469]
[1693575029404,1.10674464,26049.0,26048.0,1.74548469]
[1693575029605,0.001,26050.0,26048.0,1.74548469]
[1693575029828,1.10674464,26049.0,26048.0,1.74548469]
[1693575030272,1.10674464,26049.0,26048.0,0.64832469]
[1693575030524,1.22494464,26050.0,26048.0,0.64832469]
[1693575030727,1.10674464,26049.0,26048.0,0.64832469]
[1693575031531,1.10674464,26049.0,26048.0,1.14180469]
[1693575031938,1.10674464,26049.0,26048.0,1.13780469]
[1693575032550,1.10674464,26049.0,26048.0,1.14180469]
[1693575034574,1.10674464,26049.0,26048.0,0.65232469]
[1693575038102,1.10674464,26049.0,26048.0,0.63732469]
[1693575043306,1.10674464,26049.0,26048.0,1.12680469]
[1693575043588,0.82108549,26051.0,26048.0,1.12680469]
[1693575043589,1.10674464,26050.0,26048.0,1.12680469]
[1693575043900,1.10674464,26049.0,26048.0,1.61628469]
[1693575044249,1.10674464,26050.0,26048.0,1.61628469]
[1693575044461,1.10674464,26049.0,26048.0,1.61228469]
[1693575044659,1.10674464,26050.0,26048.0,1.61228469]
[1693575044840,1.10674464,26049.0,26048.0,1.61228469]
[1693575045326,1.10774464,26050.0,26048.0,1.61228469]
[1693575045509,1.10674464,26049.0,26048.0,1.61228469]
[1693575046126,0.23022372,26053.0,26048.0,1.73448469]
[1693575046327,1.10659157,26052.0,26049.0,0.27303471]
[1693575046527,1.10659157,26052.0,26050.0,1.468329]
[1693575048401,1.10659157,26052.0,26050.0,1.470329]
[1693575048594,1.10759157,26052.0,26050.0,1.472329]
[1693575048799,1.10659157,26051.0,26050.0,1.472329]
[1693575048997,1.10659157,26051.0,26050.0,1.470329]
[1693575049151,1.10659157,26051.0,26050.0,1.468329]
[1693575049369,1.10659157,26051.0,26050.0,1.469329]
[1693575049696,1.10659157,26051.0,26050.0,1.470329]
[1693575049896,1.10659157,26051.0,26050.0,1.469329]
[1693575050864,1.10659157,26051.0,26050.0,1.468329]
[1693575051063,1.10759157,26051.0,26050.0,1.468329]
[1693575051516,0.001,26051.0,26050.0,1.468329]
[1693575052057,1.10763267,26051.0,26050.0,1.468329]
[1693575053315,1.10763267,26051.0,26050.0,1.586529]
[1693575053740,0.001,26051.0,26050.0,1.586529]
[1693575054687,0.001,26051.0,26050.0,1.468329]
[1693575059140,0.001,26051.0,26050.0,1.85541578]
[1693575059949,0.001,26051.0,26050.0,2.41361578]
[1693575060148,0.001,26051.0,26050.0,2.45361578]
[1693575060391,0.001,26051.0,26050.0,2.54555253]
[1693575060592,0.23025701,26059.0,26052.0,0.14]
[1693575060851,1.1063721,26058.0,26055.0,0.1182]
[1693575060987,1.1063721,26058.0,26056.0,0.978652]
[1693575061196,1.1063721,26058.0,26056.0,2.11213871]
[1693575061401,1.1063721,26058.0,26057.0,0.1182]
[1693575061604,1.1063721,26058.0,26057.0,1.586133]
[1693575061807,1.1063721,26059.0,26057.0,1.586133]
[1693575062020,1.1063721,26058.0,26057.0,1.467933]
[1693575062225,1.10632386,26059.0,26057.0,1.586133]
[1693575062639,1.10632386,26058.0,26057.0,1.586133]
[1693575062847,1.10632386,26060.0,26057.0,1.586133]
[1693575063049,1.10632386,26059.0,26057.0,1.586133]
[1693575063255,1.10632386,26058.0,26057.0,1.586133]
[1693575063674,1.10632386,26060.0,26057.0,1.586133]
[1693575063873,1.10632386,26059.0,26057.0,1.586133]
[1693575064078,1.10632386,26058.0,26057.0,1.586133]
[1693575064278,1.10632386,26061.0,26057.0,1.586133]
[1693575064487,1.10632386,26061.0,26057.0,1.58498741]
[1693575065099,1.10632386,26061.0,26057.0,1.62198741]
[1693575065735,1.10632386,26061.0,26057.0,1.63398741]
[1693575066165,1.10632386,26061.0,26057.0,1.51578741]
[1693575066694,1.10632386,26061.0,26057.0,1.47878741]
[1693575066894,1.10632386,26061.0,26057.0,1.49578741]
[1693575068082,1.10632386,26061.0,26057.0,1.47878741]
[1693575068307,1.10632386,26061.0,26057.0,1.47078741]
[1693575069311,1.10632386,26061.0,26058.0,0.1182]
[1693575069489,1.10632386,26061.0,26059.0,1.957096]
[1693575069697,1.10632386,26061.0,26060.0,0.38708678]
[1693575069899,0.00746583,26062.0,26061.0,1.956944]
[1693575070099,0.00746583,26062.0,26061.0,2.075144]
[1693575070880,0.00746583,26062.0,26061.0,2.375144]
[1693575071627,0.00746583,26062.0,26061.0,2.412144]
[1693575072262,0.00746583,26062.0,26061.0,1.841708]
[1693575072664,0.00746583,26062.0,26061.0,1.804708]
[1693575073073,0.00746583,26062.0,26061.0,1.767708]
[1693575073275,0.00746583,26062.0,26061.0,1.804708]
[1693575073654,0.00746583,26062.0,26061.0,1.767708]
[1693575073862,0.00746583,26062.0,26061.0,1.804708]
[1693575074584,0.00746583,26062.0,26061.0,1.841708]
[1693575074791,0.00746583,26062.0,26061.0,1.804708]
[1693575075140,0.00746583,26062.0,26061.0,1.841708]
[1693575076026,0.00746583,26062.0,26061.0,2.22879478]
[1693575079764,0.00746583,26062.0,26061.0,1.841708]
[1693575084337,0.00746583,26062.0,26061.0,2.22879478]
[1693575086271,0.00746583,26062.0,26061.0,1.352472]
[1693575086675,0.00746583,26062.0,26061.0,1.841708]
[1693575086861,0.00746583,26062.0,26061.0,1.052472]
[1693575087496,1.1136499,26062.0,26061.0,1.541708]
[1693575087702,1.1136499,26062.0,26061.0,1.052472]
[1693575088732,1.1136499,26062.0,26061.0,1.541708]
[1693575090417,1.1136499,26062.0,26061.0,1.052472]
[1693575093692,1.33418202,26062.0,26061.0,0.563236]
[1693575094338,1.1136499,26062.0,26061.0,1.052472]
[1693575094488,1.33419863,26062.0,26061.0,0.563236]
[1693575095638,1.33419863,26062.0,26061.0,0.074]
[1693575097041,1.45239863,26062.0,26061.0,0.074]
[1693575097653,2.02794863,26062.0,26061.0,0.074]
[1693575099210,2.60349863,26062.0,26061.0,0.074]
[1693575099790,3.17904863,26062.0,26061.0,0.074]
[1693575103422,3.56613541,26062.0,26061.0,0.074]
[1693575105431,3.56601322,26062.0,26061.0,0.074]
[1693575105849,3.56614016,26062.0,26061.0,0.074]
[1693575106930,3.17905338,26062.0,26061.0,0.074]
[1693575108339,3.56614016,26062.0,26061.0,0.074]
[1693575109956,3.17905338,26062.0,26061.0,0.074]
[1693575110128,3.17905338,26062.0,26061.0,0.1303274]
[1693575110753,3.17905338,26062.0,26061.0,0.074]
[1693575112446,3.56614016,26062.0,26061.0,0.074]
[1693575112623,3.65824296,26062.0,26061.0,0.074]
[1693575114692,3.79639717,26062.0,26061.0,0.074]
[1693575114893,5.94197799,26062.0,26061.0,0.074]
[1693575115098,6.02428939,26062.0,26061.0,0.074]
[1693575115347,6.02428939,26062.0,26061.0,0.037]
[1693575115348,5.97568644,26062.0,26061.0,0.037]
[1693575115607,6.28534644,26062.0,26061.0,0.037]
[1693575115846,6.28534644,26062.0,26052.0,0.2267]
[1693575115847,0.02,26056.0,26052.0,0.2267]
[1693575116050,3.22052479,26055.0,26052.0,0.04915225]
[1693575116257,0.1182,26053.0,26052.0,0.04915225]
[1693575116466,2.37600901,26053.0,26052.0,0.04915225]
[1693575116668,2.37600901,26053.0,26050.0,0.489436]
[1693575116669,2.37600901,26053.0,26050.0,0.97887]
[1693575116867,0.1182,26051.0,26050.0,0.97887]
[1693575117179,0.1182,26051.0,26050.0,1.01031971]
[1693575117597,0.1182,26051.0,26050.0,0.97887]
[1693575118428,0.1182,26051.0,26050.0,0.489434]
[1693575118848,0.1182,26051.0,26050.0,0.978877]
[1693575119267,0.1182,26051.0,26050.0,1.015877]
[1693575119444,0.1182,26051.0,26050.0,0.526434]
[1693575119674,0.1212,26051.0,26050.0,0.563434]
[1693575120083,0.1212,26051.0,26050.0,0.074]
[1693575120395,1.848579,26051.0,26050.0,0.074]
[1693575121468,1.272786,26051.0,26050.0,0.074]
[1693575121905,1.272786,26051.0,26050.0,0.16711217]
[1693575123171,1.272786,26051.0,26050.0,0.074]
[1693575123956,1.848579,26051.0,26050.0,0.074]
[1693575124524,2.23566578,26051.0,26050.0,0.074]
[1693575133386,2.23266578,26051.0,26050.0,0.037]
[1693575133693,2.23266578,26051.0,26048.0,0.14384469]
[1693575133694,1.727511,26049.0,26048.0,0.14384469]
[1693575133895,2.23279778,26049.0,26048.0,0.14384469]
[1693575135455,2.23779778,26049.0,26048.0,0.14684469]
[1693575136849,2.27479778,26049.0,26048.0,0.14984469]
[1693575137368,0.617837,26049.0,26048.0,0.14984469]
[1693575137582,0.617837,26049.0,26048.0,0.21378026]
[1693575137765,1.193674,26049.0,26048.0,0.14984469]
[1693575138378,1.193674,26049.0,26048.0,0.14384469]
[1693575138379,1.151674,26049.0,26048.0,0.14384469]
[1693575138546,1.156674,26049.0,26048.0,0.14684469]
[1693575138757,2.45382008,26049.0,26048.0,0.14684469]
[1693575138968,2.44882008,26049.0,26048.0,0.14384469]
[1693575139166,2.45382008,26049.0,26048.0,0.14484469]
[1693575139745,2.49082008,26049.0,26048.0,0.14784469]
[1693575140173,2.45382008,26049.0,26048.0,0.14484469]
[1693575140413,2.48282008,26049.0,26048.0,0.14684469]
[1693575146052,2.48933098,26049.0,26048.0,0.14684469]
[1693575146465,2.26679778,26049.0,26048.0,0.14684469]
[1693575148856,0.12,26048.0,26043.0,0.06923612]
[1693575149054,0.1182,26044.0,26043.0,0.06923612]
[1693575149539,0.1182,26044.0,26043.0,0.020099]
[1693575149989,0.1182,26044.0,26043.0,0.021099]
[1693575150392,1.270096,26044.0,26043.0,0.021099]
[1693575150596,2.05519034,26044.0,26043.0,0.020099]
[1693575151053,2.05819034,26044.0,26043.0,0.057099]
[1693575151243,2.23813078,26044.0,26043.0,0.094099]
[1693575151446,2.48010185,26044.0,26043.0,0.094099]